{"text_format":"1","workbook":"xlsx","n_sheets":2,"sheets":["営繕依頼書","営繕種別ﾘｽﾄ"],"not_rendered":{"charts":0,"images":5,"macros":1,"external_links":0,"defined_names":2,"comments":1,"pivot_tables":0},"unopened":[],"bounds":{"document_bytes":16777216,"sheet_cells":100000,"rows_first":2000,"rows_last":500,"rows_between":2000,"halvings":0,"cell_chars":16384,"cell_head_chars":4096},"cells_cut":0,"cells_raw":0,"read":"whole","date_system":"1900"}

{"sheet":"営繕依頼書","index":0,"n_rows":74,"n_cols":55,"rows_kept":74,"cut":false,"hidden":false,"merged":[[15,9,15,21],[15,22,15,34],[15,35,15,49],[16,0,16,8],[16,9,16,21],[16,22,16,34],[16,35,16,49],[70,0,70,49],[65,0,66,8],[68,0,68,49],[69,0,69,49],[64,6,64,19],[64,26,64,29],[64,31,64,34],[59,0,59,15],[60,0,60,15],[58,34,58,49],[58,0,58,15],[38,34,38,49],[28,29,29,30],[7,19,7,20],[8,20,8,28],[7,16,7,17],[6,39,6,42],[6,13,6,38],[5,41,5,44],[9,0,9,8],[9,44,9,48],[9,20,9,28],[5,36,5,39],[6,43,6,49],[6,9,6,12],[78,0,78,49],[73,0,73,7],[73,8,73,49],[74,0,74,49],[75,0,75,49],[76,0,76,49],[77,0,77,49],[7,9,7,11],[7,24,7,25],[7,22,7,23],[8,29,8,49],[66,22,66,49],[37,34,37,49],[43,34,57,49],[39,34,39,49],[65,47,65,49],[59,34,59,49],[43,17,57,32],[65,36,65,46],[60,34,60,49],[61,34,61,49],[59,17,59,32],[40,34,40,49],[65,22,65,32],[71,0,71,49],[72,0,72,49],[66,9,66,21],[0,43,0,49],[2,47,2,48],[2,40,2,42],[2,44,2,45],[2,36,2,39],[5,17,5,20],[5,21,5,31],[5,32,5,35],[9,9,9,19],[9,29,9,43],[10,0,10,8],[10,9,10,12],[67,0,67,7],[64,36,64,39],[65,19,65,21],[65,9,65,18],[65,33,65,35],[61,0,61,15],[60,17,60,32],[61,17,61,32],[43,0,57,15],[2,2,3,15],[8,0,8,8],[8,9,8,19],[10,29,10,49],[58,17,58,32],[7,0,7,8],[5,46,5,49],[22,34,36,49],[5,9,5,12],[5,13,5,16],[10,13,10,21],[7,13,7,14],[10,25,10,28],[17,0,17,8],[17,9,17,21],[17,22,17,34],[17,35,17,49],[18,0,18,8],[18,9,18,21],[18,22,18,34],[18,35,18,49],[15,0,15,8],[5,0,6,8],[10,22,10,24]]}
[null,null,null,null,null,null,null,null,null,null,null,null,null,null,null,null,null,null,null,null,null,null,null,null,null,null,null,null,null,null,null,null,null,null,null,null,null,null,null,null,null,null,null,"2017/8/4更新",null,null,null,null,null,null,null,"✔"]
[]
[null,null,"営 繕 依 頼 書",null,null,null,null,null,null,null,null,null,null,null,null,null,null,null,null,null,null,null,null,null,null,null,null,null,null,null,null,null,null,null,null,null,"依頼日",null,null,null,2018,null,null,"年",7,null,"　　月",21,null,"　　日"]
[]
[]
["対象店舗",null,null,null,null,null,null,null,null,"店舗コード",null,null,null,"02887",null,null,null,"店舗名",null,null,null,"GEO鈴鹿西条店",null,null,null,null,null,null,null,null,null,null,"電話番号",null,null,null,"059",null,null,null,"-","384",null,null,null,"-","8610"]
[null,null,null,null,null,null,null,null,null,"住所",null,null,null,"三重県鈴鹿市西條町423番地の１",null,null,null,null,null,null,null,null,null,null,null,null,null,null,null,null,null,null,null,null,null,null,null,null,null,"店長/店責",null,null,null,"小坂　栄治"]
["発生日時",null,null,null,null,null,null,null,null,"2018",null,null,"年","07",null,"月","21",null,"日","16",null,"時","00",null,"分頃"]
["大分類",null,null,null,null,null,null,null,null,{"$f":"VLOOKUP(営繕種別ﾘｽﾄ!$I$4,営繕種別ﾘｽﾄ!$J:$L,2,0)","v":"_01_外装工事"},null,null,null,null,null,null,null,null,null,null,"中分類",null,null,null,null,null,null,null,null,{"$f":"VLOOKUP(営繕種別ﾘｽﾄ!$I$4,営繕種別ﾘｽﾄ!$J:$L,3,0)","v":"01-1_外壁・屋根・壁・雨樋等"}]
["修繕箇所",null,null,null,null,null,null,null,null,"倉庫ダクト",null,null,null,null,null,null,null,null,null,null,"破損状態",null,null,null,null,null,null,null,null,"鳩の糞の被害",null,null,null,null,null,null,null,null,null,null,null,null,null,null,"営繕分類ｺｰﾄﾞ",null,null,null,null,{"$f":"IFERROR(VLOOKUP(AD9,営繕種別ﾘｽﾄ!C:E,3,0),\"\")","v":1}]
["営業に差し支えるかどうか",null,null,null,null,null,null,null,null,"無",null,null,null,"保険対応になるかどうか",null,null,null,null,null,null,null,null,"不明",null,null,"営繕条件",null,null,null,{"$f":"IFERROR(VLOOKUP(AD9,営繕種別ﾘｽﾄ!C:D,2,0),\"\")","v":0}]
[{"$f":"IF(AD9=\"04-1_店内照明関係\",\"※直接営繕依頼の場合は右記リンク先の書類作成もお願いします\",IF(AD9=\"04-2_外部照明関係\",\"※直接営繕依頼の場合は右記リンク先の書類作成もお願いします\",IF(AD9=\"01-2_雨漏り\",\"※冷房使用時は水漏れ付近の空調を停め\n水漏れが止まるか確認して下さい\n\",\"\")))","v":""},null,null,null,null,null,null,null,null,null,null,null,null,null,null,null,null,null,null,null,null,null,null,null,null,null,null,null,null,{"$f":"IF(AD9=\"04-1_店内照明関係\",HYPERLINK(\"#直接営繕用追加書類!A1\",\"直接営繕用追加書類リンク\"),IF(AD9=\"04-2_外部照明関係\",HYPERLINK(\"#直接営繕用追加書類!A1\",\"直接営繕用追加書類リンク\"),\"\"))","v":""}]
[{"$f":"IF(AD9=\"01-2_雨漏り\",\"　→水漏れが止まった場合は、書類作成後に空調の修繕を依頼して下さい\n\",\"\")","v":""}]
[{"$f":"IF(AD9=\"01-2_雨漏り\",\"　→水漏れが止まらない場合は、書類作成後に雨漏りの修繕を依頼して下さい\n\",\"\")","v":""}]
["修繕依頼が【04-4_空調機（ｴｱｺﾝ）】の場合"]
["メーカー",null,null,null,null,null,null,null,null,"エラーコード",null,null,null,null,null,null,null,null,null,null,null,null,"不良個所",null,null,null,null,null,null,null,null,null,null,null,null,"詳細"]
[]
[]
[]
[]
["図面等貼付欄↓"]
["※下記に図面・駐車場配置図等を貼付けてください。（手書きも可）",null,null,null,null,null,null,null,null,null,null,null,null,null,null,null,null,null,null,null,null,null,null,null,null,null,null,null,null,null,null,null,null,null,"遠景"]
[null,null,null,null,null,null,null,null,null,null,null,null,null,null,null,null,null,null,null,null,null,null,null,null,null,null,null,null,null,null,null,null,null,null,"場所・高さ・大きさ等がわかるような\n写真を貼りつけてください\n（記入例の写真を参考下さい）\n\n※ 写真はVGAで撮影し、JPEGで保存して下さい\nVGA（約30万画素、640×480ピクセル）"]
[]
[]
[]
[]
[]
[null,null,null,null,null,null,null,null,null,null,null,null,null,null,null,null,null,null,null,null,null,null,null,null,null,null,null,null,null,"駐車場"]
[]
[]
[]
[]
[]
[]
[]
[]
[null,null,null,null,null,null,null,null,null,null,null,null,null,null,null,null,null,null,null,null,null,null,null,null,null,null,null,null,null,null,null,null,null,null,"状況コメント"]
[null,null,null,null,null,null,null,null,null,null,null,null,null,null,null,null,null,null,null,null,null,null,null,null,null,null,null,null,null,null,null,null,null,null,"外壁の２Fにダクトがあり、そこから鳩が"]
[null,null,null,null,null,null,null,null,null,null,null,null,null,null,null,null,null,null,null,null,null,null,null,null,null,null,null,null,null,null,null,null,null,null,"入り込んでいる。"]
[]
[]
["近景",null,null,null,null,null,null,null,null,null,null,null,null,null,null,null,null,"アップ",null,null,null,null,null,null,null,null,null,null,null,null,null,null,null,null,"型番・メーカー名"]
["設備・備品そのものが収まっている\n写真を貼りつけてください\n（記入例の写真を参考下さい）\n\n※ 写真はVGAで撮影し、JPEGで保存して下さい\nVGA（約30万画素、640×480ピクセル）",null,null,null,null,null,null,null,null,null,null,null,null,null,null,null,null,"故障箇所が大写しになっている\n写真を貼りつけてください\n（記入例の写真を参考下さい）\n\n※　写真の枚数が多くなる場合は、\nメールに添付してください\n\n※ 写真はVGAで撮影し、JPEGで保存して下さい\nVGA（約30万画素、640×480ピクセル）",null,null,null,null,null,null,null,null,null,null,null,null,null,null,null,null,"型番・メーカー名が書いてある部分の\n写真を貼りつけてください\n（記入例の写真を参考下さい）\n\n※ 写真はVGAで撮影し、JPEGで保存して下さい\nVGA（約30万画素、640×480ピクセル）"]
[]
[]
[]
[]
[]
[]
[]
[]
[]
[]
[]
[]
[]
[]
["状況コメント",null,null,null,null,null,null,null,null,null,null,null,null,null,null,null,null,"状況コメント",null,null,null,null,null,null,null,null,null,null,null,null,null,null,null,null,"状況コメント"]
["倉庫内が元厨房であり、そこのダクトの中に鳩が",null,null,null,null,null,null,null,null,null,null,null,null,null,null,null,null,"このダクトを封印してほしい。",null,null,null,null,null,null,null,null,null,null,null,null,null,null,null,null,"倉庫内のダクトをダンボールなどで封印しても"]
["住み着いており、糞などの匂いが酷い。倉庫内",null,null,null,null,null,null,null,null,null,null,null,null,null,null,null,null,"また匂いが酷いのでこのダクト内の清掃も",null,null,null,null,null,null,null,null,null,null,null,null,null,null,null,null,"鳩が暴れてすぐに取れてしまう。倉庫内にも"]
["だけなので売り場には影響はない。",null,null,null,null,null,null,null,null,null,null,null,null,null,null,null,null,"行っていただきたい。",null,null,null,null,null,null,null,null,null,null,null,null,null,null,null,null,"鳩がいた形跡は何度もあり。糞や羽の被害あり。"]
[]
["↓以下、店舗業務支援課使用欄（店舗入力不要）"]
["支援課依頼者",null,null,null,null,null,null,null,null,null,null,null,null,null,null,null,null,null,null,null,"連絡先（電話番号）",null,null,null,null,null,null,null,null,null,"-",null,null,null,null,"-"]
["添付書類",null,null,null,null,null,null,null,null,"点検報告書の有無（ﾌﾟﾙﾀﾞｳﾝ）",null,null,null,null,null,null,null,null,null,null,null,null,"見積書・相見積書の有無（ﾌﾟﾙﾀﾞｳﾝ）",null,null,null,null,null,null,null,null,null,null,null,null,null,"その他書類の有無（ﾌﾟﾙﾀﾞｳﾝ）"]
[null,null,null,null,null,null,null,null,null,"書類名（その他書類が「有」の場合に記載）→",null,null,null,null,null,null,null,null,null,null,null,null,null,null,null,null,null,null,null,null,null,null,null,null,null,null,null,null,null,null,null,null,null,null,null,null,null,null,null,null,null,null,"件名",null,{"$f":"\"【\"&営繕依頼書!V6&\"】\"&\"●●の家主様交渉依頼\"","v":"【GEO鈴鹿西条店】●●の家主様交渉依頼"}]
["営繕担当者 自由ﾒﾓ欄",null,null,null,null,null,null,null,{"$f":"IF(G65=\"\",\"\",HYPERLINK(\"mailto:\"&N3&\"?cc=\"&BC70&\";\"&BC71&\";\"&BC72&\"&subject=\"&BC67&\"　&body=\",\"開発に交渉依頼する場合はここをクリック（必要な宛先/CCを追加）\"))","v":""}]
[]
[null,null,null,null,null,null,null,null,null,null,null,null,null,null,null,null,null,null,null,null,null,null,null,null,null,null,null,null,null,null,null,null,null,null,null,null,null,null,null,null,null,null,null,null,null,null,null,null,null,null,null,null,null,"cc","yasunori.kunimoto@geonet.co.jp"]
[null,null,null,null,null,null,null,null,null,null,null,null,null,null,null,null,null,null,null,null,null,null,null,null,null,null,null,null,null,null,null,null,null,null,null,null,null,null,null,null,null,null,null,null,null,null,null,null,null,null,null,null,null,null,"fumie.hosokawa@geonet.co.jp"]
[null,null,null,null,null,null,null,null,null,null,null,null,null,null,null,null,null,null,null,null,null,null,null,null,null,null,null,null,null,null,null,null,null,null,null,null,null,null,null,null,null,null,null,null,null,null,null,null,null,null,null,null,null,null,"masayuki.nishioka@geonet.co.jp"]
[]
["開発担当者 自由ﾒﾓ欄"]

{"sheet":"営繕種別ﾘｽﾄ","index":1,"n_rows":80,"n_cols":12,"rows_kept":80,"cut":false,"hidden":true,"merged":[[79,1,79,3],[61,1,61,3],[46,5,46,6]]}
[null,null,null,"2016/06/30改定",null,"0：家主対応不可"]
[null,null,null,null,null,"1：家主対応"]
[null,"＜営繕依頼書で依頼可能な案件＞",null,"営繕依頼書に戻る",null,"2：家主交渉可能"]
[null,"大分類","中分類","備考",null,null,null,"_01_外装工事",1]
[null,"_01_外装工事","01-1_外壁・屋根・壁・雨樋等",null,1,null,null,"_02_内装工事",null,1,{"$f":"B5","v":"_01_外装工事"},{"$f":"C5","v":"01-1_外壁・屋根・壁・雨樋等"}]
[null,"_01_外装工事","01-2_雨漏り",null,1,null,null,null,null,2,{"$f":"B7","v":"_01_外装工事"},{"$f":"C7","v":"01-3_料金・意匠・看板修理関係"}]
[null,"_01_外装工事","01-3_料金・意匠・看板修理関係","看板の老朽化による破損",2,null,null,"_03_外構工事",null,3,"_01_外装工事","01-4_外装工事_他"]
[null,"_01_外装工事","01-4_外装工事_他",null,0,null,null,"_04_電気工事",null,4,"_02_内装工事","02-1_床・天井・壁・風除室ﾀｲﾙ・軒天"]
[null,"_02_内装工事","02-1_床・天井・壁・風除室ﾀｲﾙ・軒天",null,0,null,null,"_05_防犯・保守設備",null,5,"_02_内装工事","02-2_ﾄｲﾚ、水回り"]
[null,"_02_内装工事","02-2_ﾄｲﾚ、水回り",null,0,null,null,"_06_その他",null,6,"_02_内装工事","02-3_自動ﾄﾞｱ"]
[null,"_02_内装工事","02-3_自動ﾄﾞｱ","モーターの老朽化による破損",2,null,null,null,null,7,"_02_内装工事","02-4_自動ﾄﾞｱ以外ﾄﾞｱ・鍵関係・排煙窓"]
[null,"_02_内装工事","02-4_自動ﾄﾞｱ以外ﾄﾞｱ・鍵関係・排煙窓",null,0,null,null,null,null,8,"_02_内装工事","02-5_ｶﾞﾗｽ破損"]
[null,"_02_内装工事","02-5_ｶﾞﾗｽ破損",null,0,null,null,null,null,9,"_02_内装工事","02-6_内装工事_他"]
[null,"_02_内装工事","02-6_内装工事_他",null,0,null,null,null,null,10,"_03_外構工事","03-1_駐車ﾗｲﾝ・舗装工事"]
[null,"_03_外構工事","03-1_駐車ﾗｲﾝ・舗装工事","高額の場合は交渉可能",2,null,null,null,null,11,"_03_外構工事","03-2_側溝・蓋・車止め関連"]
[null,"_03_外構工事","03-2_側溝・蓋・車止め関連",null,0,null,null,null,null,12,"_03_外構工事","03-3_物置き（鍵・他改修含む）"]
[null,"_03_外構工事","03-3_物置き（鍵・他改修含む）",null,0,null,null,null,null,13,"_03_外構工事","03-4_ﾀｲﾙ・ｼｬｯﾀｰ・ﾎﾟｰﾙ・ﾌｪﾝｽ破損"]
[null,"_03_外構工事","03-4_ﾀｲﾙ・ｼｬｯﾀｰ・ﾎﾟｰﾙ・ﾌｪﾝｽ破損","フェンスの老朽化による破損",2,null,null,null,null,14,"_03_外構工事","03-5_外構工事_他"]
[null,"_03_外構工事","03-5_外構工事_他",null,0,null,null,null,null,15,"_04_電気工事","04-1_店内照明関係"]
[null,"_04_電気工事","04-1_店内照明関係",null,0,null,null,null,null,16,"_04_電気工事","04-2_外部照明関係"]
[null,"_04_電気工事","04-2_外部照明関係",null,0,null,null,null,null,17,"_04_電気工事","04-3_電源ｺﾝｾﾝﾄ関係"]
[null,"_04_電気工事","04-3_電源ｺﾝｾﾝﾄ関係",null,0,null,null,null,null,18,"_04_電気工事","04-4_空調機（ｴｱｺﾝ）"]
[null,"_04_電気工事","04-4_空調機（ｴｱｺﾝ）",null,0,null,null,null,null,19,"_04_電気工事","04-5_通信設備"]
[null,"_04_電気工事","04-5_通信設備",null,0,null,null,null,null,20,"_04_電気工事","04-6_電気工事_他"]
[null,"_04_電気工事","04-6_電気工事_他",null,0,null,null,null,null,21,"_05_防犯・保守設備","05-1_防犯機器関係"]
[null,"_05_防犯・保守設備","05-1_防犯機器関係",null,0,null,null,null,null,22,"_05_防犯・保守設備","05-2_機械警備関係"]
[null,"_05_防犯・保守設備","05-2_機械警備関係",null,0,null,null,null,null,23,"_05_防犯・保守設備","05-3_高圧受電設備関係"]
[null,"_05_防犯・保守設備","05-3_高圧受電設備関係","UGS・PAS設置・PAS改修・高圧ｹｰﾌﾞﾙ改修・更新　※消耗品は除く",2,null,null,null,null,24,"_05_防犯・保守設備","05-4_浄化槽関係"]
[null,"_05_防犯・保守設備","05-4_浄化槽関係","老朽化による破損　※消耗品は除く",2,null,null,null,null,25,"_05_防犯・保守設備","05-5_消防設備改修"]
[null,"_05_防犯・保守設備","05-5_消防設備改修","老朽化による破損　※消耗品は除く",2,null,null,null,null,26,"_05_防犯・保守設備","05-7_金庫関連"]
[null,"_05_防犯・保守設備","05-7_金庫関連",null,0,null,null,null,null,27,"_05_防犯・保守設備","05-8_昇降機/ｴﾚﾍﾞｰﾀｰ/ｴｽｶﾚｰﾀｰ"]
[null,"_05_防犯・保守設備","05-8_昇降機/ｴﾚﾍﾞｰﾀｰ/ｴｽｶﾚｰﾀｰ","老朽化による破損　※消耗品は除く",2,null,null,null,null,28,"_05_防犯・保守設備","05-9_駐車場警備"]
[null,"_05_防犯・保守設備","05-9_駐車場警備",null,0,null,null,null,null,29,"_05_防犯・保守設備","05-16_防犯・保守設備_他"]
[null,"_05_防犯・保守設備","05-16_防犯・保守設備_他","貯水槽の老朽化による破損　※消耗品は除く",2,null,null,null,null,30,"_06_その他","06-2_返却BOX・ﾎﾟｽﾄ関連"]
[null,"_06_その他","06-2_返却BOX・ﾎﾟｽﾄ関連",null,0,null,null,null,null,31,"_06_その他","06-4_害虫駆除関係"]
[null,"_06_その他","06-4_害虫駆除関係",null,0,null,null,null,null,32,{"$f":"B37","v":"_06_その他"},"06-6_研磨機"]
[null,"_06_その他","06-6_研磨機",null,0,null,null,null,null,33,"_06_その他","06-7_設備/用品運送費"]
[null,"_06_その他","06-7_設備/用品運送費",null,0,null,null,null,null,34,"_06_その他","06-8_ｼｮｰｹｰｽ関連"]
[null,"_06_その他","06-8_ｼｮｰｹｰｽ関連",null,0,null,null,null,null,35,"_06_その他","06-9_店舗除草/樹木伐採"]
[null,"_06_その他","06-9_店舗除草/樹木伐採",null,0,null,null,null,null,36,"_06_その他","06-10_自転車防犯登録"]
[null,"_06_その他","06-10_自転車防犯登録",null,0,null,null,null,null,37,"_06_その他","06-11_除排雪"]
[null,"_06_その他","06-11_除排雪",null,0,null,null,null,null,38,"_06_その他","06-12_備品購入"]
[null,"_06_その他","06-12_備品購入",null,0,null,null,null,null,39,"_06_その他","06-15_その他_他"]
[null,"_06_その他","06-15_その他_他",null,0,null,null,null,null,40,"_01_外装工事","01-2_雨漏り"]
[]
[null,"＜営繕依頼書で依頼できない案件＞"]
[null,"大分類","中分類","備考","ﾒﾃﾞｨｱ","ﾘﾕｰｽ"]
[null,"_05_防犯・保守設備","05-6_法定点検"]
[null,"_05_防犯・保守設備","05-10_屋外広告物申請費用"]
[null,"_05_防犯・保守設備","05-11_屋外広告物点検"]
[null,"_05_防犯・保守設備","05-12_屋外広告物許可手数料"]
[null,"_05_防犯・保守設備","05-13_建築物定期調査申請費用"]
[null,"_05_防犯・保守設備","05-14_建築物定期調査"]
[null,"_05_防犯・保守設備","05-15_建築物定期調査手数料"]
[null,"_06_その他","06-1_産業廃棄物","このファイルでは依頼できません。専用フォーマットをご使用下さい。","ﾘﾝｸ","RKC加入","RKC未加入"]
[null,"_06_その他","06-3_ｼｭﾚｯﾀﾞｰ・等修理依頼書関係","このファイルでは依頼できません。専用フォーマットをご使用下さい。","ﾘﾝｸ"]
[null,"_06_その他","06-5_放置車両","このファイルでは依頼できません。専用フォーマットをご使用下さい。"]
[null,"_06_その他","06-13_什器解体・廃棄費用"]
[null,"_06_その他","06-14_什器購入、什器部材購入"]
[]
[]
[null,"物件開発課 家主交渉案件/営繕種別"]
[null,"営繕分類","営繕内容","備考"]
[null,"躯体（屋根、外壁、梁、柱、階段）","破損"]
[null,"〃","雨漏り"]
[null,"高圧受電設備","UGS・PAS設置、PAS改修、高圧ｹｰﾌﾞﾙ改修･更新","※ｵｲﾙ交換等の消耗品は除く"]
[null,"地中配管","地中水道管破損による漏水"]
[null,"浄化槽","老朽化による破損","※消耗品は除く"]
[null,"ｴﾚﾍﾞｰﾀｰ","老朽化による破損","※消耗品は除く"]
[null,"ｴｽｶﾚｰﾀｰ","老朽化による破損","※消耗品は除く"]
[null,"貯水槽","老朽化による破損","※消耗品は除く"]
[null,"消防設備","老朽化による破損","※消耗品は除く"]
[null,"発電機","老朽化による破損","※消耗品は除く"]
[null,"昇降機（ﾀﾞﾑｳｪｰﾀｰ）","老朽化による破損","※消耗品は除く"]
[null,"自動ﾄﾞｱ(ﾓｰﾀｰ)","老朽化による破損","※消耗品は除く"]
[null,"看板","老朽化による破損","※消耗品は除く"]
[null,"ﾌｪﾝｽ","老朽化による破損","※消耗品は除く"]
[null,"駐車場","基本的にﾃﾅﾝﾄ負担(施設を除く)となるが、高額の場合は交渉"]
[]
[null,"※上記項目以外に不明点がございましたら、地域開発担当者にお問い合わせください。"]